bitfinex/quotes_BTCUSD_20260104
["timestamp","ask_amount","ask_price","bid_price","bid_amount"]
[1767545141619,0.01096022,91239.0,91235.0,0.06001069]
[1767545142446,0.06576064,91240.0,91235.0,0.06001069]
[1767545143031,0.25198587,91243.0,91240.0,0.000886]
[1767545143032,0.08767883,91243.0,91240.0,0.000886]
[1767545143233,0.00342409,91242.0,91238.0,0.06576203]
[1767545143427,0.00342409,91241.0,91238.0,0.06576203]
[1767545143633,0.07671892,91243.0,91238.0,0.06576188]
[1767545143796,0.02192,91243.0,91240.0,0.06576054]
[1767545143999,0.03287962,91244.0,91240.0,0.0109601]
[1767545144253,0.02192,91244.0,91240.0,0.0109601]
[1767545144691,0.02179386,91249.0,91246.0,0.01095938]
[1767545144843,0.02192,91255.0,91251.0,0.06570083]
[1767545145048,0.02192,91255.0,91251.0,0.01090742]
[1767545145212,0.02192,91255.0,91251.0,0.06575251]
[1767545145413,0.07671161,91255.0,91250.0,0.06575336]
[1767545145613,0.0328783,91255.0,91250.0,0.0109589]
[1767545146015,0.02192,91255.0,91251.0,0.06575257]
[1767545146415,0.0328783,91255.0,91251.0,0.01095878]
[1767545146659,0.13277877,91255.0,91250.0,0.06575332]
[1767545146858,0.04501972,91254.0,91251.0,0.0657524]
[1767545147250,0.0449309,91254.0,91253.0,0.05479271]
[1767545148469,0.02192,91257.0,91254.0,0.01095842]
[1767545148785,0.02192,91257.0,91255.0,0.05479128]
[1767545148987,0.04510854,91256.0,91255.0,0.05479128]
[1767545149194,0.04510854,91256.0,91254.0,0.06575028]
[1767545149604,0.04510854,91256.0,91253.0,0.01095854]
[1767545149814,0.04610754,91254.0,91251.0,0.06575159]
[1767545149959,0.04510854,91254.0,91251.0,0.06575159]
[1767545150477,0.04510854,91254.0,91251.0,0.01095878]
[1767545150700,0.04510854,91254.0,91251.0,0.06575231]
[1767545151666,0.04510854,91254.0,91251.0,0.01095878]
[1767545151869,0.04510854,91254.0,91253.0,0.05479271]
[1767545152472,0.02192,91257.0,91254.0,0.06575033]
[1767545152671,0.06702854,91257.0,91250.0,0.14653164]
[1767545152874,0.06702854,91257.0,91252.0,0.05479331]
[1767545153123,0.04510854,91256.0,91254.0,0.01095842]
[1767545153432,0.04510854,91256.0,91254.0,0.06575047]
[1767545153635,0.04510854,91256.0,91252.0,0.05479222]
[1767545153856,0.000999,91254.0,91252.0,0.01095866]
[1767545154056,0.04510854,91255.0,91251.0,0.06575152]
[1767545154560,0.08766891,91257.0,91252.0,0.01095866]
[1767545154854,0.08766891,91257.0,91253.0,0.01095854]
[1767545155680,0.08766891,91257.0,91252.0,0.06575148]
[1767545155882,0.08758008,91257.0,91252.0,0.06575148]
[1767545156578,0.06574891,91257.0,91252.0,0.06575148]
[1767545156984,0.03337152,91258.0,91253.0,0.01095854]
[1767545157314,0.02192,91258.0,91254.0,0.06575006]
[1767545157807,0.03287794,91258.0,91254.0,0.06575006]
[1767545159281,0.02192,91258.0,91254.0,0.06575006]
[1767545160433,0.06900608,91258.0,91254.0,0.06575006]
[1767545160797,0.02192,91258.0,91254.0,0.05928449]
[1767545161007,0.04708608,91261.0,91258.0,0.01095794]
[1767545161209,0.000999,91258.0,91257.0,0.06574833]
[1767545161805,0.04708608,91261.0,91257.0,0.06574833]
[1767545162009,0.04708608,91261.0,91253.0,0.05479271]
[1767545162183,0.01095806,91257.0,91245.0,0.0109595]
[1767545162394,0.06575345,91250.0,91245.0,0.05479745]
[1767545162590,0.04708608,91250.0,91245.0,0.0109595]
[1767545162795,0.04708608,91247.0,91243.0,0.03287974]
[1767545162972,0.04708608,91247.0,91243.0,0.01095974]
[1767545163333,0.04708608,91247.0,91244.0,0.06575723]
[1767545163531,0.04708608,91247.0,91246.0,0.05479692]
[1767545163951,0.04708608,91247.0,91246.0,0.05379792]
[1767545164359,0.04708608,91247.0,91246.0,0.03706869]
[1767545164912,0.04608708,91247.0,91246.0,0.03706869]
[1767545165335,0.11283736,91253.0,91248.0,0.01095914]
[1767545165777,0.06575128,91253.0,91248.0,0.01095914]
[1767545166774,0.06575198,91252.0,91247.0,0.06575518]
[1767545166976,0.06575198,91252.0,91241.0,0.23015824]
[1767545166977,0.01095902,91249.0,91241.0,0.23015824]
[1767545167153,0.000999,91247.0,91244.0,0.01095962]
[1767545167567,0.05479476,91250.0,91246.0,0.01095938]
[1767545167568,0.0109589,91250.0,91246.0,0.01095938]
[1767545167767,0.06575276,91251.0,91246.0,0.01095938]
[1767545167967,0.0109589,91250.0,91246.0,0.01095938]
[1767545168179,0.0109589,91250.0,91245.0,0.06575653]
[1767545168368,0.000999,91246.0,91245.0,0.0109595]
[1767545168837,0.06575374,91250.0,91245.0,0.0109595]
[1767545169067,0.01095902,91249.0,91244.0,0.06575735]
[1767545169239,0.01095902,91249.0,91245.0,0.0109595]
[1767545169607,0.01095902,91249.0,91244.0,0.06575735]
[1767545170034,0.01095914,91248.0,91244.0,0.00996062]
[1767545170237,0.01095914,91248.0,91241.0,5.136e-05]
[1767545170238,0.01095962,91244.0,91241.0,5.136e-05]
[1767545170436,0.06575894,91244.0,91241.0,0.04612775]
[1767545170907,0.05479881,91243.0,91241.0,0.04612775]
[1767545171101,0.06575894,91244.0,91241.0,0.04612775]
[1767545171781,0.05479896,91243.0,91241.0,5.136e-05]
[1767545172482,0.06575894,91244.0,91241.0,5.136e-05]
[1767545172686,0.05479878,91243.0,91241.0,5.136e-05]
[1767545173308,0.06575894,91244.0,91241.0,5.136e-05]
[1767545173529,0.0657564,91246.0,91241.0,0.01101134]
[1767545173719,0.05479752,91245.0,91244.0,0.000999]
[1767545173941,0.01095962,91244.0,91241.0,5.136e-05]
[1767545174149,0.06575702,91245.0,91241.0,5.136e-05]
[1767545174918,0.0109595,91245.0,91241.0,0.01101134]
[1767545175349,0.0657564,91246.0,91241.0,0.0658112]
[1767545175548,0.0657564,91246.0,91241.0,0.01101134]
[1767545175751,0.0657564,91246.0,91241.0,0.06581121]
[1767545177409,0.06575704,91245.0,91241.0,5.136e-05]
[1767545177647,0.0109595,91245.0,91241.0,0.01101134]
[1767545177863,0.06575558,91247.0,91242.0,0.01095986]
[1767545178082,0.06575558,91247.0,91242.0,0.06575916]
[1767545178305,0.01095914,91248.0,91243.0,0.01095974]
[1767545178536,0.06575488,91248.0,91243.0,0.01095974]
[1767545178974,0.06575488,91248.0,91243.0,0.01086885]
[1767545179392,0.01095926,91247.0,91242.0,0.0623844]
[1767545180281,0.01095926,91247.0,91243.0,0.01095974]
[1767545180481,0.01095926,91247.0,91242.0,0.0623844]
[1767545180697,0.01095926,91247.0,91243.0,0.01095974]
[1767545181607,0.06575635,91246.0,91242.0,0.04607639]
[1767545181953,0.04708608,91245.0,91241.0,0.06581008]
[1767545182141,0.01095938,91246.0,91242.0,0.01095986]
[1767545182538,0.11284214,91247.0,91242.0,0.06575908]
[1767545182770,0.01095938,91246.0,91242.0,0.01095986]
[1767545183166,0.11284248,91246.0,91241.0,0.06581008]
[1767545183347,0.04708608,91246.0,91242.0,0.01095986]
[1767545183553,0.05804546,91246.0,91242.0,0.01095986]
[1767545183971,0.0109595,91245.0,91241.0,5.136e-05]
[1767545184177,0.0109595,91245.0,91241.0,0.01101134]
[1767545184614,0.0109595,91245.0,91240.0,0.06575951]
[1767545184834,0.0657563,91246.0,91241.0,0.0657597]
[1767545185193,0.06575606,91247.0,91242.0,0.06575903]
[1767545185389,0.06575606,91247.0,91242.0,0.05151596]
[1767545186046,0.01095938,91246.0,91242.0,0.01095986]
[1767545186343,0.0109595,91245.0,91240.0,0.111837]
[1767545186498,0.06575647,91246.0,91241.0,0.06575989]
[1767545187234,0.06575647,91246.0,91241.0,0.06476089]
[1767545187468,0.01095938,91246.0,91242.0,0.01095986]
[1767545188021,0.06575573,91247.0,91242.0,0.06575913]
[1767545188428,0.06575644,91246.0,91241.0,0.06476089]
[1767545188843,0.11284252,91246.0,91241.0,0.06476089]
[1767545189100,0.06575644,91246.0,91241.0,0.06476089]
[1767545189803,0.06575717,91245.0,91240.0,0.06576062]
[1767545189958,0.06575717,91245.0,91240.0,0.11183701]
[1767545190164,0.06575644,91246.0,91241.0,0.0657598]
[1767545191671,0.06575644,91246.0,91241.0,0.06356854]
[1767545192251,0.06575566,91247.0,91242.0,0.06575913]
[1767545192909,0.06575416,91249.0,91244.0,0.01095962]
[1767545193054,0.06575416,91249.0,91247.0,0.000999]
[1767545193260,0.06575416,91249.0,91245.0,0.0109595]
[1767545193460,0.06575416,91249.0,91244.0,0.01095962]
[1767545194060,5.134e-05,91249.0,91246.0,0.01095938]
[1767545194316,0.05479502,91250.0,91245.0,0.0109595]
[1767545194530,0.01095902,91249.0,91245.0,0.0109595]
[1767545195454,0.06575498,91248.0,91243.0,0.06575743]
[1767545195861,0.06575584,91247.0,91242.0,0.06575903]
[1767545196401,0.01095926,91247.0,91242.0,0.06575903]
[1767545196661,0.01095926,91247.0,91243.0,0.01095974]
[1767545196864,0.06575498,91248.0,91243.0,0.06575842]
[1767545197481,0.06575498,91248.0,91243.0,0.05151547]
[1767545198074,0.0657557,91247.0,91242.0,0.06575903]
[1767545198672,0.06575498,91248.0,91243.0,0.01095974]
[1767545198918,0.06575564,91247.0,91242.0,0.06575903]
[1767545199063,0.01095938,91246.0,91242.0,0.06575903]
[1767545199570,0.06575498,91248.0,91243.0,0.01095974]
[1767545199907,0.01095914,91248.0,91244.0,0.01095962]
[1767545200103,0.06575497,91248.0,91243.0,0.01095974]
[1767545200415,0.01095914,91248.0,91244.0,0.01095962]
[1767545200795,0.01095914,91248.0,91243.0,0.06575796]
[1767545201026,0.05738123,91248.0,91243.0,0.06575796]
[1767545201385,0.04642209,91248.0,91244.0,0.01095962]
[1767545201930,0.04642209,91248.0,91244.0,0.06575765]
[1767545202596,0.05738123,91248.0,91244.0,0.01095962]
[1767545202804,0.05738135,91247.0,91243.0,0.01095974]
[1767545203233,0.04642209,91247.0,91244.0,0.01095962]
[1767545203424,0.04642209,91247.0,91244.0,0.06575772]
[1767545204139,0.06575423,91249.0,91244.0,0.06575772]
[1767545204497,0.06575423,91249.0,91244.0,0.06571772]
[1767545204690,0.01095914,91248.0,91244.0,0.01091962]
[1767545205260,0.01095938,91246.0,91240.0,0.0109601]
[1767545205598,5.1e-05,91244.0,91240.0,0.01101144]
[1767545205954,0.06575606,91247.0,91242.0,0.01095986]
[1767545206280,0.01095926,91247.0,91240.0,5.134e-05]
[1767545206453,0.0109595,91245.0,91240.0,0.01101144]
[1767545206640,0.05738159,91245.0,91240.0,0.01101144]
[1767545206848,0.04642209,91243.0,91240.0,0.01096703]
[1767545207052,0.04642209,91243.0,91240.0,0.01092263]
[1767545207356,0.01095914,91248.0,91239.0,0.06576112]
[1767545207357,0.05527532,91256.0,91251.0,0.01095878]
[1767545207553,5.1e-05,91251.0,91248.0,0.01095914]
[1767545207758,0.01095854,91253.0,91248.0,0.01095914]
[1767545207959,0.0328783,91255.0,91251.0,0.06575268]
[1767545208216,0.02192,91255.0,91251.0,0.01095878]
[1767545208415,0.0328783,91255.0,91251.0,0.01095878]
[1767545208664,0.0328783,91255.0,91250.0,0.06575339]
[1767545208841,0.01095842,91254.0,91250.0,0.06575339]
[1767545209270,0.08767027,91255.0,91250.0,0.06575339]
[1767545209400,0.0328783,91255.0,91251.0,0.01095878]
[1767545209602,0.0328783,91255.0,91250.0,0.06246949]
[1767545210032,0.07930039,91255.0,91250.0,0.06246949]
[1767545210232,0.0328783,91255.0,91250.0,0.06246949]
[1767545211203,0.02192,91255.0,91251.0,0.06575238]
[1767545211636,0.02192,91255.0,91251.0,0.04267232]
[1767545212260,0.02192,91255.0,91252.0,0.01095866]
[1767545212473,0.06628838,91256.0,91251.0,0.0536311]
[1767545212833,0.00053928,91256.0,91252.0,0.01095866]
[1767545213076,0.00053928,91256.0,91252.0,0.06575189]
[1767545213285,0.00053928,91256.0,91253.0,0.01095854]
[1767545213530,0.01095758,91261.0,91256.0,0.000539]
[1767545213777,0.05478957,91259.0,91256.0,0.000539]
[1767545213950,0.05478957,91259.0,91254.0,0.05479207]
[1767545214160,0.01095782,91259.0,91255.0,0.0109583]
[1767545214370,0.01095782,91259.0,91254.0,0.06575049]
[1767545214589,0.0657477,91258.0,91253.0,0.06575111]
[1767545214792,0.01095794,91258.0,91254.0,0.01095842]
[1767545215776,0.01095806,91257.0,91252.0,0.01095866]
[1767545215956,0.0109583,91255.0,91251.0,0.00048399]
[1767545216182,5.1e-05,91252.0,91251.0,0.00048399]
[1767545216374,0.01095794,91258.0,91251.0,0.00048399]
[1767545216375,0.06574769,91258.0,91254.0,0.01095842]
[1767545216826,0.01095794,91258.0,91254.0,0.01095842]
[1767545217000,0.06574705,91259.0,91254.0,0.06570501]
[1767545217675,0.01095794,91258.0,91254.0,0.01091298]
[1767545218013,0.01095806,91257.0,91252.0,0.06575186]
[1767545218430,5.1e-05,91252.0,91251.0,0.00048399]
[1767545218632,0.0109583,91255.0,91251.0,0.00048399]
[1767545218806,0.06574884,91257.0,91253.0,0.01095854]
[1767545219011,0.06574884,91257.0,91255.0,0.000948]
[1767545219254,0.06574884,91257.0,91253.0,0.01095854]
[1767545219954,0.06574884,91257.0,91252.0,0.06575197]
[1767545219955,0.01095806,91257.0,91252.0,0.06575197]
[1767545220582,0.01095818,91256.0,91251.0,0.06623659]
[1767545220904,0.06574885,91257.0,91252.0,0.05479289]
[1767545221106,0.01095794,91258.0,91254.0,0.01095842]
[1767545221341,0.08766595,91261.0,91256.0,0.01095818]
[1767545221699,0.020972,91261.0,91256.0,0.01095818]
[1767545221904,0.0109577,91260.0,91252.0,0.01095866]
[1767545222109,0.0109577,91260.0,91253.0,0.01095854]
[1767545222859,0.01095782,91259.0,91254.0,0.01095842]
[1767545223293,0.06039419,91260.0,91255.0,0.05479118]
[1767545223497,0.11518278,91260.0,91255.0,0.05479118]
[1767545224267,0.01095782,91259.0,91255.0,0.0109583]
[1767545225123,0.06574707,91259.0,91254.0,0.06575053]
[1767545225474,0.04936776,91258.0,91254.0,0.06575053]
[1767545225682,0.04943649,91257.0,91253.0,0.06570567]
[1767545226511,0.06574776,91258.0,91253.0,0.06570567]
[1767545226754,0.06574776,91258.0,91254.0,0.01095842]
[1767545226873,0.01095806,91257.0,91247.0,0.01095926]
[1767545227072,0.05479091,91256.0,91251.0,0.01095878]
[1767545227376,0.06574909,91256.0,91252.0,0.01095866]
[1767545227818,0.04943649,91255.0,91252.0,0.01095866]
[1767545228224,0.06039479,91255.0,91251.0,0.01095878]
[1767545229042,0.04943649,91255.0,91251.0,0.06575248]
[1767545229413,0.04943649,91254.0,91251.0,0.06575264]
[1767545229755,0.04943649,91254.0,91252.0,0.0547933]
[1767545229912,0.04943649,91254.0,91251.0,0.0657072]
[1767545230772,0.04943649,91254.0,91252.0,0.05479326]
[1767545230916,0.06574854,91257.0,91252.0,0.06575192]
[1767545231119,0.06574766,91258.0,91254.0,0.01095842]
[1767545231346,0.01095794,91258.0,91254.0,0.06575049]
[1767545232114,0.0109577,91260.0,91256.0,0.01095818]
[1767545232352,0.01095782,91259.0,91255.0,0.0109583]
[1767545232963,0.01095782,91259.0,91254.0,0.06575035]
[1767545233206,0.01095746,91262.0,91256.0,0.01095818]
[1767545233349,0.02192,91261.0,91258.0,0.06574721]
[1767545233550,0.01095734,91263.0,91259.0,0.01095782]
[1767545233753,0.08781495,91264.0,91259.0,0.06574672]
[1767545233961,0.01095746,91262.0,91258.0,0.01095794]
[1767545234123,0.01095734,91263.0,91259.0,0.01095782]
[1767545234529,0.60688218,91259.0,91258.0,0.06570744]
[1767545235103,0.60688218,91259.0,91258.0,0.01091794]
[1767545236435,0.60688218,91259.0,91258.0,0.0108725]
[1767545236637,0.60688218,91259.0,91258.0,0.01082706]
[1767545237708,0.60688218,91259.0,91258.0,0.06561677]
[1767545237883,0.65631867,91259.0,91258.0,0.06561677]
[1767545240442,0.65631867,91259.0,91258.0,0.01078706]
[1767545240745,0.12638425,91259.0,91258.0,0.06557677]
[1767545240950,0.07694776,91259.0,91258.0,0.06557677]
[1767545241521,0.0001516,91264.0,91261.0,0.01095758]
[1767545241842,0.0001516,91264.0,91260.0,0.0601116]
[1767545242274,0.0001516,91264.0,91259.0,0.06574693]
[1767545242806,0.01110882,91264.0,91259.0,0.01095782]
[1767545243663,0.04943649,91263.0,91259.0,0.01095782]
[1767545243870,0.0001516,91264.0,91260.0,0.0109577]
[1767545244295,0.0001516,91264.0,91260.0,0.0657461]
[1767545244447,0.0001516,91264.0,91261.0,0.01095758]
[1767545245221,0.0001516,91264.0,91259.0,0.06574678]
[1767545245464,0.0001516,91264.0,91261.0,0.01095758]
[1767545245844,0.0001516,91264.0,91261.0,0.06574497]
[1767545246627,0.0001516,91264.0,91263.0,0.05478671]
[1767545247094,0.0001516,91264.0,91263.0,0.05484201]
[1767545251686,0.0001516,91264.0,91263.0,0.05480201]
[1767545253194,0.0001516,91264.0,91263.0,0.05380301]
[1767545254269,0.0001516,91264.0,91263.0,5.53e-05]
[1767545255656,0.0001516,91264.0,91263.0,1.089e-05]
[1767545256244,0.04892729,91264.0,91263.0,1.089e-05]
[1767545257670,0.04892729,91264.0,91255.0,0.0109583]
[1767545257671,0.01095782,91259.0,91255.0,0.0109583]
[1767545257881,0.01110882,91264.0,91259.0,0.01191338]
[1767545258087,0.01110882,91264.0,91259.0,0.06670237]
[1767545258266,0.01110882,91264.0,91260.0,0.0109577]
[1767545258608,0.01110882,91264.0,91259.0,0.06574676]
[1767545258827,0.0001516,91264.0,91260.0,0.05478829]
[1767545259271,0.0001516,91264.0,91260.0,0.0109577]
[1767545260200,0.0001516,91264.0,91259.0,0.06574676]
[1767545260448,0.01110882,91264.0,91259.0,0.01095782]
[1767545260899,0.000999,91259.0,91256.0,0.01095818]
[1767545261120,0.06574484,91262.0,91256.0,0.06574905]
[1767545261350,0.06574484,91262.0,91257.0,0.01095806]
[1767545261566,0.06574419,91263.0,91258.0,0.01095794]
[1767545261788,0.01095746,91262.0,91257.0,0.01095806]
[1767545262655,0.01095758,91261.0,91256.0,0.06574866]
[1767545263351,0.01095734,91263.0,91258.0,0.01095794]
[1767545263579,0.01110882,91264.0,91259.0,0.01095782]
[1767545263982,0.06589519,91264.0,91259.0,0.01095782]
[1767545264438,0.01110882,91264.0,91259.0,0.01095782]
[1767545265049,0.01095734,91263.0,91258.0,0.06570312]
[1767545265246,0.01095746,91262.0,91258.0,0.01095794]
[1767545265407,0.01095734,91263.0,91257.0,0.0657483]
[1767545265608,0.01095734,91263.0,91258.0,0.01095794]
[1767545266211,0.0657445,91263.0,91257.0,0.0657483]
[1767545266416,0.05973315,91262.0,91257.0,0.0657483]
[1767545267097,0.04877569,91261.0,91257.0,0.01095806]
[1767545267519,0.05973327,91261.0,91256.0,0.06574897]
[1767545267857,0.05973327,91261.0,91257.0,0.01095806]
[1767545267858,0.04877569,91261.0,91257.0,0.01095806]
[1767545268076,0.05973327,91261.0,91256.0,0.06574897]
[1767545268685,0.04877569,91261.0,91257.0,0.01095806]
[1767545269058,0.01095746,91262.0,91257.0,0.01095806]
[1767545269804,0.01095746,91262.0,91256.0,0.06246625]
[1767545270005,0.06574524,91262.0,91256.0,0.05479088]
[1767545271066,0.05479211,91254.0,91253.0,0.02189089]
[1767545271268,0.06356056,91255.0,91249.0,0.01095902]
[1767545271457,0.01095842,91254.0,91249.0,0.01095806]
[1767545271658,0.01095842,91254.0,91250.0,0.0109589]
[1767545271850,0.01095842,91254.0,91249.0,0.0657531]
[1767545272280,0.06356056,91255.0,91250.0,0.0109589]
[1767545272914,0.06575231,91252.0,91249.0,4.344e-05]
[1767545273098,0.00995966,91252.0,91249.0,4.344e-05]
[1767545273606,0.06575243,91253.0,91249.0,4.344e-05]
[1767545273799,0.01095866,91252.0,91249.0,4.344e-05]
[1767545274001,0.01095854,91253.0,91249.0,4.344e-05]
[1767545274401,0.06575128,91253.0,91249.0,4.344e-05]
[1767545274740,0.01095878,91251.0,91248.0,0.02192]
[1767545275053,4.738e-05,91251.0,91248.0,0.0327937]
[1767545275831,4.738e-05,91251.0,91248.0,0.02183456]
[1767545275977,0.01095878,91251.0,91248.0,0.02183456]
[1767545276180,0.00448123,91252.0,91248.0,0.02183456]
[1767545276388,0.01095878,91251.0,91248.0,0.02083556]
[1767545276631,0.06575322,91251.0,91248.0,0.02083556]
[1767545276852,0.01095878,91251.0,91248.0,0.02083556]
[1767545277071,0.05479497,91250.0,91248.0,0.02083556]
[1767545277263,0.06575276,91251.0,91248.0,0.02083556]
[1767545277637,0.05479512,91249.0,91248.0,0.02083556]
[1767545277839,0.05479465,91250.0,91248.0,0.02083556]
[1767545278241,0.01095902,91249.0,91244.0,0.02192]
[1767545278569,0.06575355,91250.0,91249.0,0.000999]
[1767545278707,0.06575355,91250.0,91245.0,0.0109595]
[1767545279764,0.06575465,91249.0,91244.0,0.02192]
[1767545279990,0.0109589,91250.0,91249.0,0.000999]
[1767545280192,0.01095866,91252.0,91249.0,0.00095461]
[1767545280355,0.01095878,91251.0,91245.0,0.0109595]
[1767545280562,0.01095878,91251.0,91246.0,0.05684446]
[1767545281006,0.01095878,91251.0,91246.0,0.03904218]
[1767545281204,0.01095878,91251.0,91245.0,0.0657569]
[1767545281405,0.04994404,91256.0,91251.0,0.000955]
[1767545281565,0.06041836,91255.0,91251.0,0.000955]
[1767545281764,0.06041848,91254.0,91251.0,0.000955]
[1767545281960,0.01095854,91253.0,91248.0,0.06575486]
[1767545282181,0.06575132,91253.0,91247.0,0.06575543]
[1767545282387,0.01095866,91252.0,91247.0,0.06570999]
[1767545282636,0.01095878,91251.0,91247.0,0.01091382]
[1767545282835,0.01095878,91251.0,91246.0,0.06575577]
[1767545283037,0.06575205,91252.0,91247.0,0.01095926]
[1767545283554,0.06575205,91252.0,91247.0,0.05684434]
[1767545284573,0.01144216,91256.0,91252.0,0.000955]
[1767545284777,0.01144216,91256.0,91250.0,0.0109589]
[1767545285063,0.01095842,91254.0,91249.0,0.01095902]
[1767545286430,0.01095842,91254.0,91249.0,0.0568441]
[1767545286638,0.01095842,91254.0,91249.0,0.1116392]
[1767545286840,0.01095842,91254.0,91250.0,0.0109589]
[1767545287043,0.06574983,91255.0,91250.0,0.0109589]
[1767545287873,0.00048398,91256.0,91251.0,0.01095878]
[1767545288066,0.00048398,91256.0,91252.0,0.01095866]
[1767545288247,0.05527493,91256.0,91251.0,0.01095878]
[1767545288444,0.06623311,91256.0,91251.0,0.01095878]
[1767545288655,0.00048398,91256.0,91252.0,0.01095866]
[1767545288831,0.01095782,91259.0,91256.0,0.00047102]
[1767545289014,0.01095782,91259.0,91254.0,0.01095842]
[1767545289222,0.01095794,91258.0,91253.0,0.01095854]
[1767545289599,0.01095794,91258.0,91253.0,0.06575123]
[1767545289805,0.01095806,91257.0,91252.0,0.06575191]
[1767545290018,0.000528,91253.0,91251.0,0.01144277]
[1767545290133,0.06574797,91258.0,91252.0,0.06575196]
[1767545290345,0.11520803,91258.0,91252.0,0.06575196]
[1767545290550,0.06574797,91258.0,91252.0,0.06575196]
[1767545290786,0.06574863,91257.0,91251.0,0.01144277]
[1767545291005,0.01095818,91256.0,91251.0,0.01144277]
[1767545291378,0.01095818,91256.0,91251.0,0.0547939]
[1767545291595,0.01095806,91257.0,91252.0,0.01095866]
[1767545291820,0.01095806,91257.0,91251.0,0.06575268]
[1767545291821,0.01095818,91256.0,91251.0,0.06575268]
[1767545292121,0.06574924,91256.0,91251.0,0.01095878]
[1767545292344,0.0109583,91255.0,91250.0,0.06571341]
[1767545292722,0.01095818,91256.0,91251.0,0.01095878]
[1767545293410,0.06574909,91256.0,91250.0,0.05479441]
[1767545293604,0.0109583,91255.0,91249.0,0.06575414]
[1767545293806,0.0109583,91255.0,91249.0,0.06571414]
[1767545294204,0.06574909,91256.0,91250.0,0.06575324]
[1767545294406,0.0109583,91255.0,91250.0,0.06575324]
[1767545294591,0.06574982,91255.0,91250.0,0.0109589]
[1767545295035,0.0109583,91255.0,91250.0,0.06575287]
[1767545295453,0.06574927,91256.0,91251.0,0.01095878]
[1767545296178,0.04946006,91255.0,91251.0,0.01095878]
[1767545296696,0.06041836,91255.0,91250.0,0.06575287]
[1767545296904,0.0109583,91255.0,91250.0,0.06575287]
[1767545297449,0.0109583,91255.0,91250.0,0.0109589]
[1767545297631,0.06041836,91255.0,91250.0,0.01091346]
[1767545298196,0.06041836,91255.0,91250.0,0.0657079]
[1767545299127,0.0109583,91255.0,91250.0,0.11159298]
[1767545299327,0.0109583,91255.0,91250.0,0.0657079]
[1767545299536,0.06574929,91256.0,91250.0,0.0657079]
[1767545299741,0.06574929,91256.0,91250.0,0.0656679]
[1767545300214,0.0109583,91255.0,91248.0,0.06575441]
[1767545300424,0.01095818,91256.0,91251.0,0.01095878]
[1767545300577,0.06574931,91256.0,91250.0,0.0109589]
[1767545300995,0.0109583,91255.0,91250.0,0.06575319]
[1767545301397,0.01095842,91254.0,91249.0,0.0657536]
[1767545301714,0.06574993,91255.0,91250.0,0.0109589]
[1767545301912,0.0109583,91255.0,91251.0,0.01095878]
[1767545302112,0.06574923,91256.0,91251.0,0.01095878]
[1767545302880,0.0109583,91255.0,91250.0,0.06575334]
[1767545304491,0.0109583,91255.0,91250.0,0.0109589]
[1767545304492,0.06574987,91255.0,91250.0,0.0109589]
[1767545304703,0.06574923,91256.0,91250.0,0.0657534]
[1767545304978,0.0109583,91255.0,91250.0,0.0657534]
[1767545305363,0.06575012,91255.0,91250.0,0.0109589]
[1767545305523,0.000528,91250.0,91249.0,0.06575408]
[1767545305726,0.000528,91250.0,91249.0,0.06571408]
[1767545305920,0.0109583,91255.0,91250.0,0.06575328]
[1767545306155,0.06574917,91256.0,91251.0,0.01095878]
[1767545306775,0.06574897,91257.0,91252.0,0.01095866]
[1767545306977,0.06574855,91257.0,91252.0,0.01095866]
[1767545307184,0.01095818,91256.0,91251.0,0.06575243]
[1767545307592,0.04946006,91255.0,91251.0,0.06575243]
[1767545308015,0.01095818,91256.0,91251.0,0.06575243]
[1767545308316,0.06574708,91259.0,91252.0,0.06575181]
[1767545308532,0.060418,91258.0,91253.0,0.0657508]
[1767545309161,0.000528,91253.0,91250.0,0.0109589]
[1767545309360,0.000528,91253.0,91251.0,0.05479354]
[1767545309579,0.04946006,91256.0,91251.0,0.05479354]
[1767545309800,0.06041824,91256.0,91251.0,0.06575232]
[1767545310300,0.0475586,91254.0,91250.0,0.0657534]
[1767545310473,0.000528,91251.0,91249.0,0.06575401]
[1767545310892,0.0657496,91256.0,91251.0,0.01095878]
[1767545311100,0.0475586,91255.0,91251.0,0.06575268]
[1767545311630,0.0475586,91255.0,91251.0,0.01091878]
[1767545311974,0.0475586,91255.0,91250.0,0.06575336]
[1767545312178,0.0475586,91255.0,91251.0,0.01095878]
[1767545312406,0.01144215,91256.0,91251.0,0.01095878]
[1767545312843,0.0109583,91255.0,91250.0,0.06575336]
[1767545315023,0.00048397,91256.0,91252.0,0.01095866]
[1767545315170,0.04845068,91255.0,91252.0,0.01095866]
[1767545315375,0.04845068,91255.0,91252.0,0.06575164]
[1767545316039,0.04845068,91255.0,91253.0,0.05479241]
[1767545317078,0.04845068,91255.0,91252.0,0.06575164]
[1767545317278,0.00048397,91256.0,91253.0,0.01095854]
[1767545317480,0.000528,91253.0,91252.0,0.06575164]
[1767545317921,0.00048397,91256.0,91252.0,0.06571164]
[1767545318445,0.00048397,91256.0,91253.0,0.01095854]
[1767545318730,0.00048397,91256.0,91253.0,0.06575106]
[1767545318879,0.00048397,91256.0,91252.0,0.06571164]
[1767545319275,0.00048397,91256.0,91253.0,0.01095854]
[1767545319679,0.00048397,91256.0,91252.0,0.06571164]
[1767545319881,0.00048397,91256.0,91253.0,0.06575094]
[1767545320094,0.00048397,91256.0,91252.0,0.0656662]
[1767545321645,0.00048397,91256.0,91253.0,0.01095854]
[1767545321842,0.04893465,91256.0,91253.0,0.01095854]
[1767545322255,0.04893465,91256.0,91252.0,0.06566651]
[1767545323896,0.04893465,91256.0,91252.0,0.06562651]
[1767545324057,0.04893465,91256.0,91252.0,0.06234373]
[1767545325843,0.05989283,91256.0,91251.0,0.06575261]
[1767545326268,0.05940898,91255.0,91250.0,0.06575324]
[1767545327015,0.0109583,91255.0,91250.0,0.0657078]
[1767545329128,0.01095842,91254.0,91249.0,0.0657541]
[1767545329473,0.0109583,91255.0,91251.0,0.01095878]
[1767545329834,0.00048397,91256.0,91255.0,0.000471]
[1767545330075,0.00048397,91256.0,91255.0,0.000431]
[1767545330456,0.00048397,91256.0,91252.0,0.01095866]
[1767545332058,0.00048397,91256.0,91252.0,0.06575194]
[1767545334327,0.00048397,91256.0,91253.0,0.065751]
[1767545334767,0.00048397,91256.0,91253.0,0.05479246]
[1767545334976,0.00048397,91256.0,91252.0,0.06575194]
[1767545336101,0.00048397,91256.0,91252.0,0.05475328]
[1767545336274,0.00048397,91256.0,91253.0,0.01095854]
[1767545336486,0.00048397,91256.0,91253.0,0.06568257]
[1767545337314,0.01144215,91256.0,91250.0,0.05479417]
[1767545337546,0.000568,91253.0,91250.0,0.05479417]
[1767545337757,0.0662331,91256.0,91250.0,0.05479417]
[1767545337968,0.04845068,91251.0,91247.0,0.01095926]
[1767545338152,0.04845068,91251.0,91248.0,0.01095914]
[1767545338349,0.04845068,91251.0,91247.0,0.01095926]
[1767545338580,0.04845068,91251.0,91247.0,0.06575537]
[1767545339659,0.04845068,91251.0,91248.0,0.01095914]
[1767545339935,0.04845068,91251.0,91248.0,0.01039114]
[1767545341311,0.04845068,91251.0,91248.0,0.06518674]
[1767545341511,0.04745168,91251.0,91244.0,0.02192]
[1767545341761,0.04745168,91251.0,91241.0,0.05479889]
[1767545341762,0.04868329,91246.0,91241.0,0.05479889]